[Event "Late-Titled-Tuesday-Blitz-June-25-2024"]
[Site "Chess.com"]
[Date "2024.06.25"]
[Round "4"]
[White "Chempiblinka"]
[Black "ArmanGhevondyanchess"]
[Result "0-1"]
[WhiteElo "2407"]
[BlackElo "2605"]
[TimeControl "180+1"]
[EndTime "14:37:02 PDT"]
[Termination "ArmanGhevondyanchess won by resignation"]

1. Nf3 {[%clk 0:03:00.9]} 1... d5 {[%clk 0:02:59.8]} 2. g3 {[%clk 0:03:01.3]}
2... c6 {[%clk 0:03:00.2]} 3. Bg2 {[%clk 0:03:01.3]} 3... Nf6 {[%clk 0:02:59.8]}
4. c4 {[%clk 0:03:01.7]} 4... dxc4 {[%clk 0:02:58]} 5. a4 {[%clk 0:02:57.7]}
5... Bf5 {[%clk 0:02:41.6]} 6. Na3 {[%clk 0:02:56]} 6... e6 {[%clk 0:02:39.7]}
7. Nxc4 {[%clk 0:02:54.2]} 7... Be7 {[%clk 0:02:37.8]} 8. O-O {[%clk 0:02:53.3]}
8... O-O {[%clk 0:02:38.1]} 9. Qb3 {[%clk 0:02:47.6]} 9... Qc8 {[%clk
0:02:32.5]} 10. d3 {[%clk 0:02:45.2]} 10... Nbd7 {[%clk 0:02:32.3]} 11. Nd4
{[%clk 0:02:37.4]} 11... Bg6 {[%clk 0:02:26.6]} 12. Bf4 {[%clk 0:02:36.2]} 12...
Nc5 {[%clk 0:02:18.7]} 13. Qc2 {[%clk 0:02:32.3]} 13... Rd8 {[%clk 0:02:18.1]}
14. b4 {[%clk 0:02:23.9]} 14... Nxd3 {[%clk 0:02:10.2]} 15. exd3 {[%clk
0:01:30.2]} 15... Rxd4 {[%clk 0:02:09.8]} 16. Rfd1 {[%clk 0:01:28.8]} 16... Nd5
{[%clk 0:01:19.8]} 17. Bd6 {[%clk 0:01:08.7]} 17... Rxc4 {[%clk 0:01:09.5]} 18.
Qxc4 {[%clk 0:01:05.1]} 18... Bxd6 {[%clk 0:01:09.7]} 19. b5 {[%clk 0:00:59.8]}
19... cxb5 {[%clk 0:01:06.4]} 20. axb5 {[%clk 0:00:59.3]} 20... Qc5 {[%clk
0:00:52.2]} 21. Rac1 {[%clk 0:00:40.5]} 21... Rc8 {[%clk 0:00:48.6]} 22. Bxd5
{[%clk 0:00:33.8]} 22... exd5 {[%clk 0:00:44.5]} 23. Qh4 {[%clk 0:00:27.5]}
23... Qxc1 {[%clk 0:00:42.1]} 24. Rxc1 {[%clk 0:00:28.3]} 24... Rxc1+ {[%clk
0:00:41.9]} 25. Kg2 {[%clk 0:00:29.2]} 25... Bxd3 {[%clk 0:00:31.1]} 26. Qd8+
{[%clk 0:00:28.9]} 26... Bf8 {[%clk 0:00:31.4]} 27. Qxd5 {[%clk 0:00:29.2]}
27... Rd1 {[%clk 0:00:23.5]} 28. Qxb7 {[%clk 0:00:29.3]} 28... h6 {[%clk
0:00:17.5]} 29. Qxa7 {[%clk 0:00:28.2]} 29... Bxb5 {[%clk 0:00:17.3]} 30. h4
{[%clk 0:00:28]} 30... Bc6+ {[%clk 0:00:17.6]} 31. Kh3 {[%clk 0:00:26.7]} 31...
h5 {[%clk 0:00:16]} 32. g4 {[%clk 0:00:25.4]} 32... Rd3+ {[%clk 0:00:15.4]} 33.
Kh2 {[%clk 0:00:24.4]} 33... hxg4 {[%clk 0:00:16.1]} 34. h5 {[%clk 0:00:24.6]}
34... Bd6+ {[%clk 0:00:16.3]} 35. f4 {[%clk 0:00:18.7]} 35... Bxf4+ {[%clk
0:00:16.5]} 36. Kg1 {[%clk 0:00:18.7]} 36... Be3+ {[%clk 0:00:16.3]} 37. Qxe3
{[%clk 0:00:13.4]} 37... Rxe3 {[%clk 0:00:17.2]} 0-1

[Event "Late-Titled-Tuesday-Blitz-June-25-2024"]
[Site "Chess.com"]
[Date "2024.06.25"]
[Round "4"]
[White "EternalNight8"]
[Black "JiangoFett"]
[Result "1-0"]
[WhiteElo "2394"]
[BlackElo "2511"]
[TimeControl "180+1"]
[EndTime "14:37:02 PDT"]
[Termination "EternalNight8 won by resignation"]

1. e4 {[%clk 0:03:00.9]} 1... c5 {[%clk 0:02:58.6]} 2. Nf3 {[%clk 0:02:59.9]}
2... Nc6 {[%clk 0:02:58.3]} 3. d4 {[%clk 0:02:55.8]} 3... cxd4 {[%clk
0:02:59.2]} 4. Nxd4 {[%clk 0:02:56.2]} 4... e6 {[%clk 0:02:56]} 5. Nc3 {[%clk
0:02:53.8]} 5... Qc7 {[%clk 0:02:55.8]} 6. Be3 {[%clk 0:02:53.6]} 6... a6 {[%clk
0:02:55.8]} 7. Qf3 {[%clk 0:02:53.5]} 7... Bd6 {[%clk 0:02:54.5]} 8. Nxc6 {[%clk
0:02:50.1]} 8... bxc6 {[%clk 0:02:52.3]} 9. O-O-O {[%clk 0:02:50.3]} 9... Nf6
{[%clk 0:02:44.3]} 10. g4 {[%clk 0:02:44.4]} 10... Rb8 {[%clk 0:02:21.5]} 11. g5
{[%clk 0:02:40.8]} 11... Ng8 {[%clk 0:02:22.1]} 12. Bc4 {[%clk 0:02:33.4]} 12...
Ne7 {[%clk 0:02:16.6]} 13. h4 {[%clk 0:02:28.5]} 13... Be5 {[%clk 0:02:11.3]}
14. Bd4 {[%clk 0:02:13.2]} 14... Ng6 {[%clk 0:02:05.6]} 15. h5 {[%clk
0:02:10.7]} 15... Bxd4 {[%clk 0:01:47]} 16. hxg6 {[%clk 0:02:09.4]} 16... Bxc3
{[%clk 0:01:38.7]} 17. Qxf7+ {[%clk 0:01:48.9]} 17... Kd8 {[%clk 0:01:38.9]} 18.
bxc3 {[%clk 0:01:49.4]} 18... Qe5 {[%clk 0:01:28.8]} 19. Rxh7 {[%clk 0:01:33.2]}
19... Re8 {[%clk 0:01:25.8]} 20. Rxg7 {[%clk 0:01:22]} 20... d5 {[%clk
0:00:41.9]} 21. Bxa6 {[%clk 0:00:47]} 21... Qxg5+ {[%clk 0:00:23.1]} 22. f4
{[%clk 0:00:46.9]} 22... Qe7 {[%clk 0:00:19.2]} 23. Bxc8 {[%clk 0:00:47]} 23...
Rxc8 {[%clk 0:00:11.8]} 24. exd5 {[%clk 0:00:31.1]} 24... cxd5 {[%clk 0:00:10]}
25. Rxd5+ {[%clk 0:00:23]} 25... exd5 {[%clk 0:00:08.1]} 26. Qxd5+ {[%clk
0:00:23.9]} 26... Kc7 {[%clk 0:00:07.8]} 27. Rxe7+ {[%clk 0:00:24.1]} 27... Rxe7
{[%clk 0:00:08.7]} 28. Qc5+ {[%clk 0:00:22.2]} 28... Kd7 {[%clk 0:00:09.1]} 29.
Qd4+ {[%clk 0:00:22.8]} 29... Kc7 {[%clk 0:00:08.1]} 30. c4 {[%clk 0:00:15.7]}
30... Rg8 {[%clk 0:00:06.9]} 31. f5 {[%clk 0:00:14.9]} 31... Rf8 {[%clk
0:00:05.5]} 32. f6 {[%clk 0:00:14.5]} 32... Rd7 {[%clk 0:00:04.2]} 33. Qc5+
{[%clk 0:00:14]} 1-0

[Event "Late-Titled-Tuesday-Blitz-June-25-2024"]
[Site "Chess.com"]
[Date "2024.06.25"]
[Round "4"]
[White "Jospem"]
[Black "BardArtem"]
[Result "1-0"]
[WhiteElo "3052"]
[BlackElo "2834"]
[TimeControl "180+1"]
[EndTime "14:37:05 PDT"]
[Termination "Jospem won on time"]

1. e4 {[%clk 0:03:00.9]} 1... e5 {[%clk 0:02:59.4]} 2. Nf3 {[%clk 0:03:01]} 2...
Nc6 {[%clk 0:03:00.1]} 3. Nc3 {[%clk 0:03:01.2]} 3... Nf6 {[%clk 0:03:00.7]} 4.
h3 {[%clk 0:03:01.8]} 4... a6 {[%clk 0:02:53.7]} 5. d4 {[%clk 0:03:01.4]} 5...
exd4 {[%clk 0:02:54.6]} 6. Nxd4 {[%clk 0:03:02.3]} 6... Bb4 {[%clk 0:02:54.1]}
7. Nxc6 {[%clk 0:03:02.5]} 7... bxc6 {[%clk 0:02:55]} 8. Bd3 {[%clk 0:03:02.9]}
8... d5 {[%clk 0:02:54.2]} 9. exd5 {[%clk 0:03:03]} 9... cxd5 {[%clk 0:02:55.1]}
10. O-O {[%clk 0:03:03.3]} 10... O-O {[%clk 0:02:55.8]} 11. Qf3 {[%clk
0:03:03.9]} 11... c6 {[%clk 0:02:55.8]} 12. Bf4 {[%clk 0:03:03.7]} 12... Bd6
{[%clk 0:02:53.4]} 13. Rad1 {[%clk 0:03:02.2]} 13... Rb8 {[%clk 0:02:50.6]} 14.
b3 {[%clk 0:03:02.4]} 14... h6 {[%clk 0:02:49.6]} 15. Ne2 {[%clk 0:03:01.2]}
15... a5 {[%clk 0:02:47]} 16. c4 {[%clk 0:03:00.9]} 16... Re8 {[%clk 0:02:38.8]}
17. cxd5 {[%clk 0:02:54.9]} 17... Nxd5 {[%clk 0:02:34.2]} 18. Bxd6 {[%clk
0:02:55.2]} 18... Qxd6 {[%clk 0:02:35.1]} 19. Bc4 {[%clk 0:02:53.1]} 19... Qb4
{[%clk 0:01:59.2]} 20. Nd4 {[%clk 0:02:51.9]} 20... Bd7 {[%clk 0:01:53.8]} 21.
Nxc6 {[%clk 0:02:39.7]} 21... Bxc6 {[%clk 0:01:52.7]} 22. Bxd5 {[%clk
0:02:40.4]} 22... Bxd5 {[%clk 0:01:53.2]} 23. Rxd5 {[%clk 0:02:41.2]} 23... a4
{[%clk 0:01:52.9]} 24. Rd7 {[%clk 0:02:37.8]} 24... Rf8 {[%clk 0:01:52.5]} 25.
Rb1 {[%clk 0:02:35.4]} 25... axb3 {[%clk 0:01:50.4]} 26. axb3 {[%clk 0:02:32.4]}
26... Rbc8 {[%clk 0:01:37.5]} 27. Rbd1 {[%clk 0:02:24.7]} 27... Rc3 {[%clk
0:01:30.5]} 28. R7d3 {[%clk 0:02:24.8]} 28... Rxd3 {[%clk 0:01:22.7]} 29. Rxd3
{[%clk 0:02:22.8]} 29... Re8 {[%clk 0:01:19.6]} 30. g3 {[%clk 0:02:20.2]} 30...
Rb8 {[%clk 0:01:16.2]} 31. Kg2 {[%clk 0:02:20.1]} 31... Qb5 {[%clk 0:01:10.1]}
32. Rc3 {[%clk 0:02:11.2]} 32... Qb4 {[%clk 0:01:08.3]} 33. h4 {[%clk
0:02:08.5]} 33... Qb5 {[%clk 0:00:59.9]} 34. Qe4 {[%clk 0:02:04.1]} 34... Re8
{[%clk 0:00:56.3]} 35. Qc6 {[%clk 0:01:33.2]} 35... Qe2 {[%clk 0:00:55.9]} 36.
Rf3 {[%clk 0:01:16.6]} 36... Qe6 {[%clk 0:00:40.8]} 37. Qxe6 {[%clk 0:01:13.3]}
37... Rxe6 {[%clk 0:00:41.7]} 38. b4 {[%clk 0:01:13.4]} 38... Rb6 {[%clk
0:00:23.6]} 39. Rb3 {[%clk 0:01:13.2]} 39... f5 {[%clk 0:00:23.1]} 40. Kf3
{[%clk 0:01:09.2]} 40... g5 {[%clk 0:00:22.6]} 41. hxg5 {[%clk 0:01:08.1]} 41...
hxg5 {[%clk 0:00:23.5]} 42. Ke3 {[%clk 0:01:08.8]} 42... Kf7 {[%clk 0:00:09.3]}
43. Kd4 {[%clk 0:01:08.6]} 43... Ke6 {[%clk 0:00:10.2]} 44. b5 {[%clk
0:01:06.5]} 44... Rd6+ {[%clk 0:00:07.9]} 45. Kc5 {[%clk 0:01:06.9]} 45... Rd5+
{[%clk 0:00:07.2]} 46. Kc6 {[%clk 0:01:05.2]} 46... Rd6+ {[%clk 0:00:06.9]} 47.
Kc7 {[%clk 0:01:05.8]} 47... Rd7+ {[%clk 0:00:07.1]} 48. Kc8 {[%clk 0:01:06]}
48... Rh7 {[%clk 0:00:02.8]} 49. b6 {[%clk 0:01:06]} 49... Rh8+ {[%clk
0:00:03.7]} 50. Kc7 {[%clk 0:01:05.9]} 50... Rh7+ {[%clk 0:00:03.9]} 51. Kc6
{[%clk 0:01:06.4]} 51... Rh8 {[%clk 0:00:01.1]} 52. b7 {[%clk 0:01:06.8]} 1-0

[Event "Late-Titled-Tuesday-Blitz-June-25-2024"]
[Site "Chess.com"]
[Date "2024.06.25"]
[Round "4"]
[White "Seppppppy"]
[Black "GlavkonVVS"]
[Result "0-1"]
[WhiteElo "2393"]
[BlackElo "2643"]
[TimeControl "180+1"]
[EndTime "14:37:08 PDT"]
[Termination "GlavkonVVS won by resignation"]

1. d4 {[%clk 0:03:00.9]} 1... Nf6 {[%clk 0:02:59.9]} 2. c4 {[%clk 0:03:01.3]}
2... c5 {[%clk 0:02:58.1]} 3. d5 {[%clk 0:03:01]} 3... e6 {[%clk 0:02:58.4]} 4.
Nc3 {[%clk 0:02:59.8]} 4... exd5 {[%clk 0:02:58.1]} 5. cxd5 {[%clk 0:03:00.7]}
5... d6 {[%clk 0:02:58.4]} 6. e4 {[%clk 0:03:01.2]} 6... g6 {[%clk 0:02:58.7]}
7. f4 {[%clk 0:03:00.9]} 7... Bg7 {[%clk 0:02:58.6]} 8. Nf3 {[%clk 0:03:01.4]}
8... O-O {[%clk 0:02:58.2]} 9. Be2 {[%clk 0:03:01.8]} 9... Re8 {[%clk
0:02:57.4]} 10. Qc2 {[%clk 0:02:43.1]} 10... Na6 {[%clk 0:02:46.6]} 11. Bxa6
{[%clk 0:02:40.6]} 11... bxa6 {[%clk 0:02:46.3]} 12. O-O {[%clk 0:02:27.9]}
12... Bg4 {[%clk 0:02:41.3]} 13. h3 {[%clk 0:02:23.3]} 13... Bxf3 {[%clk
0:02:40.8]} 14. Rxf3 {[%clk 0:02:20.5]} 14... Rb8 {[%clk 0:02:40.5]} 15. Bd2
{[%clk 0:02:05]} 15... Rb4 {[%clk 0:02:35.2]} 16. Re1 {[%clk 0:01:57.6]} 16...
c4 {[%clk 0:02:26.6]} 17. e5 {[%clk 0:01:53.2]} 17... Qb6+ {[%clk 0:02:12.3]}
18. Be3 {[%clk 0:00:56.7]} 18... Rxb2 {[%clk 0:02:12.1]} 19. Qa4 {[%clk
0:00:56.9]} 19... Qb8 {[%clk 0:01:22.1]} 20. exf6 {[%clk 0:00:31.1]} 20... Bxf6
{[%clk 0:01:22]} 21. Nd1 {[%clk 0:00:31.7]} 21... Rb1 {[%clk 0:01:15.1]} 22. Kh2
{[%clk 0:00:32]} 22... Qb5 {[%clk 0:01:02.3]} 23. Qc2 {[%clk 0:00:21.5]} 23...
Ra1 {[%clk 0:00:44.1]} 24. Nc3 {[%clk 0:00:12.6]} 24... Rxe1 {[%clk 0:00:39.6]}
25. Nxb5 {[%clk 0:00:11.6]} 25... axb5 {[%clk 0:00:40.2]} 26. Bxa7 {[%clk
0:00:08.9]} 26... R8e2 {[%clk 0:00:39.9]} 27. Qxe2 {[%clk 0:00:03.8]} 27... Rxe2
{[%clk 0:00:39.4]} 28. Bb8 {[%clk 0:00:04.1]} 28... Be7 {[%clk 0:00:38.3]} 29.
Ra3 {[%clk 0:00:04.3]} 29... b4 {[%clk 0:00:31.3]} 30. Ra8 {[%clk 0:00:04.7]}
30... Kg7 {[%clk 0:00:30.7]} 31. Ra6 {[%clk 0:00:05.3]} 31... c3 {[%clk
0:00:30.6]} 32. Bxd6 {[%clk 0:00:04.8]} 32... Bxd6 {[%clk 0:00:30.8]} 33. Rxd6
{[%clk 0:00:05.7]} 33... Rxa2 {[%clk 0:00:30.6]} 34. Rc6 {[%clk 0:00:05.3]}
34... c2 {[%clk 0:00:29.7]} 35. d6 {[%clk 0:00:05.9]} 35... Kf6 {[%clk
0:00:29.8]} 36. Rc7 {[%clk 0:00:05]} 36... b3 {[%clk 0:00:28]} 37. g4 {[%clk
0:00:05]} 37... Ke6 {[%clk 0:00:27]} 38. d7 {[%clk 0:00:05.1]} 38... Ke7 {[%clk
0:00:27.1]} 39. f5 {[%clk 0:00:04.2]} 39... c1=Q+ {[%clk 0:00:27]} 40. Kg3
{[%clk 0:00:03]} 40... Qxc7+ {[%clk 0:00:27.5]} 0-1

[Event "Late-Titled-Tuesday-Blitz-June-25-2024"]
[Site "Chess.com"]
[Date "2024.06.25"]
[Round "4"]
[White "LiemLe"]
[Black "Rodalquilar"]
[Result "1-0"]
[WhiteElo "3030"]
[BlackElo "2829"]
[TimeControl "180+1"]
[EndTime "14:37:12 PDT"]
[Termination "LiemLe won on time"]

1. c4 {[%clk 0:03:00.9]} 1... e6 {[%clk 0:03:00.1]} 2. g3 {[%clk 0:03:00.1]}
2... d5 {[%clk 0:03:00.4]} 3. Bg2 {[%clk 0:03:01]} 3... Nf6 {[%clk 0:03:00.8]}
4. Nf3 {[%clk 0:03:01.3]} 4... Be7 {[%clk 0:03:01.4]} 5. b3 {[%clk 0:02:59.1]}
5... O-O {[%clk 0:02:58.3]} 6. Bb2 {[%clk 0:02:59.3]} 6... b6 {[%clk 0:02:54.4]}
7. O-O {[%clk 0:02:59.1]} 7... Bb7 {[%clk 0:02:53.7]} 8. e3 {[%clk 0:02:54.5]}
8... dxc4 {[%clk 0:02:52.3]} 9. bxc4 {[%clk 0:02:54.8]} 9... c5 {[%clk
0:02:52.8]} 10. Qe2 {[%clk 0:02:53.3]} 10... Nc6 {[%clk 0:02:44.1]} 11. Nc3
{[%clk 0:02:48.8]} 11... Rc8 {[%clk 0:02:43]} 12. Rad1 {[%clk 0:02:47.8]} 12...
Qc7 {[%clk 0:02:43]} 13. Ne1 {[%clk 0:02:47.3]} 13... Rfd8 {[%clk 0:02:30.4]}
14. f4 {[%clk 0:02:47.1]} 14... Ne8 {[%clk 0:02:25.6]} 15. g4 {[%clk 0:02:45.1]}
15... Nb4 {[%clk 0:02:18.1]} 16. Bxb7 {[%clk 0:02:35.2]} 16... Qxb7 {[%clk
0:02:18.4]} 17. a3 {[%clk 0:02:35.8]} 17... Nc6 {[%clk 0:02:15.5]} 18. g5 {[%clk
0:02:35.7]} 18... a6 {[%clk 0:02:08]} 19. Rf3 {[%clk 0:02:18.7]} 19... b5 {[%clk
0:01:57.8]} 20. Rh3 {[%clk 0:02:18.3]} 20... bxc4 {[%clk 0:01:22.7]} 21. Qh5
{[%clk 0:02:06.6]} 21... Kf8 {[%clk 0:00:44.7]} 22. Ba1 {[%clk 0:01:52.2]} 22...
Nd6 {[%clk 0:00:22.7]} 23. Qxh7 {[%clk 0:01:52.1]} 23... Ke8 {[%clk 0:00:23.1]}
24. Qxg7 {[%clk 0:01:49.6]} 24... Kd7 {[%clk 0:00:23.6]} 25. Rb1 {[%clk
0:01:26.4]} 25... Qa8 {[%clk 0:00:23.6]} 26. Na4 {[%clk 0:01:25.4]} 26... Kc7
{[%clk 0:00:21.9]} 27. Nb6 {[%clk 0:01:21.2]} 27... Qb7 {[%clk 0:00:22.4]} 28.
Nd5+ {[%clk 0:01:19.2]} 28... exd5 {[%clk 0:00:22.1]} 29. Rxb7+ {[%clk
0:01:20.1]} 29... Kxb7 {[%clk 0:00:23]} 30. Be5 {[%clk 0:01:16.5]} 30... Rg8
{[%clk 0:00:20.5]} 31. Qh7 {[%clk 0:01:12.1]} 31... Nxe5 {[%clk 0:00:20.3]} 32.
fxe5 {[%clk 0:01:11.3]} 32... Rxg5+ {[%clk 0:00:21]} 33. Rg3 {[%clk 0:01:09.4]}
33... Rxe5 {[%clk 0:00:21.4]} 34. Nf3 {[%clk 0:01:09.3]} 34... Re6 {[%clk
0:00:21.9]} 35. Ng5 {[%clk 0:01:06.5]} 35... Bxg5 {[%clk 0:00:20]} 36. Rxg5
{[%clk 0:01:07.4]} 36... Kc6 {[%clk 0:00:20.4]} 37. Qh5 {[%clk 0:01:06.2]} 37...
Ne4 {[%clk 0:00:07.9]} 38. Rxd5 {[%clk 0:01:04.6]} 38... Rg6+ {[%clk 0:00:08.3]}
39. Kf1 {[%clk 0:01:03.3]} 39... Rcg8 {[%clk 0:00:05.9]} 40. Ke2 {[%clk
0:00:55.8]} 40... Rg1 {[%clk 0:00:05.3]} 41. Kf3 {[%clk 0:00:52.2]} 41... f5
{[%clk 0:00:04.1]} 42. Rxf5 {[%clk 0:00:46.8]} 42... Nxd2+ {[%clk 0:00:04.5]}
43. Ke2 {[%clk 0:00:45.9]} 43... R8g2+ {[%clk 0:00:04]} 44. Rf2 {[%clk
0:00:46.5]} 44... Ne4 {[%clk 0:00:02.3]} 45. Qe8+ {[%clk 0:00:46]} 45... Kb6
{[%clk 0:00:02.3]} 46. Qxe4 {[%clk 0:00:46]} 46... c3 {[%clk 0:00:02]} 47. Rxg2
{[%clk 0:00:45.9]} 47... c2 {[%clk 0:00:02.5]} 48. Rxg1 {[%clk 0:00:43.4]} 48...
c1=Q {[%clk 0:00:03]} 49. Rxc1 {[%clk 0:00:43.6]} 1-0

[Event "Late-Titled-Tuesday-Blitz-June-25-2024"]
[Site "Chess.com"]
[Date "2024.06.25"]
[Round "4"]
[White "carloseduar100"]
[Black "konradrutkowski"]
[Result "0-1"]
[WhiteElo "2281"]
[BlackElo "2511"]
[TimeControl "180+1"]
[EndTime "14:37:15 PDT"]
[Termination "konradrutkowski won by checkmate"]

1. g3 {[%clk 0:03:00.2]} 1... g6 {[%clk 0:02:59]} 2. Bg2 {[%clk 0:03:01.1]} 2...
Bg7 {[%clk 0:02:59.7]} 3. Nf3 {[%clk 0:03:01.8]} 3... Nf6 {[%clk 0:03:00.2]} 4.
O-O {[%clk 0:03:02.7]} 4... O-O {[%clk 0:03:00.8]} 5. d4 {[%clk 0:03:03.6]} 5...
d5 {[%clk 0:03:01]} 6. c3 {[%clk 0:03:04.5]} 6... c6 {[%clk 0:03:01.4]} 7. Nbd2
{[%clk 0:03:05.4]} 7... Nbd7 {[%clk 0:03:00.7]} 8. Re1 {[%clk 0:03:06.3]} 8...
Re8 {[%clk 0:03:01.3]} 9. e4 {[%clk 0:03:07.2]} 9... dxe4 {[%clk 0:03:00.3]} 10.
Nxe4 {[%clk 0:03:08.1]} 10... Nxe4 {[%clk 0:02:58.2]} 11. Rxe4 {[%clk
0:03:08.3]} 11... Nf6 {[%clk 0:02:58.6]} 12. Rh4 {[%clk 0:03:08.9]} 12... Bf5
{[%clk 0:02:57]} 13. Bg5 {[%clk 0:03:08.8]} 13... Qc7 {[%clk 0:02:51.6]} 14. Qe2
{[%clk 0:03:08.9]} 14... Nd7 {[%clk 0:02:41.3]} 15. g4 {[%clk 0:02:59.9]} 15...
Be6 {[%clk 0:02:34.2]} 16. Qe3 {[%clk 0:02:51]} 16... Bd5 {[%clk 0:02:26.8]} 17.
Bf4 {[%clk 0:02:47.9]} 17... Qb6 {[%clk 0:02:17.9]} 18. b3 {[%clk 0:02:46.7]}
18... a5 {[%clk 0:02:14.9]} 19. Ng5 {[%clk 0:02:46.5]} 19... Bxg2 {[%clk
0:02:10.4]} 20. Kxg2 {[%clk 0:02:40.1]} 20... h6 {[%clk 0:02:05.1]} 21. Nxf7
{[%clk 0:02:37.8]} 21... Kxf7 {[%clk 0:02:04.3]} 22. Bxh6 {[%clk 0:02:38.4]}
22... Bxh6 {[%clk 0:01:39.9]} 23. Rxh6 {[%clk 0:02:26]} 23... Kg7 {[%clk
0:01:29.5]} 24. g5 {[%clk 0:02:14.5]} 24... c5 {[%clk 0:01:23.4]} 25. Qh3 {[%clk
0:02:02.7]} 25... Nf8 {[%clk 0:01:04.7]} 26. d5 {[%clk 0:01:56.6]} 26... Qd6
{[%clk 0:00:58.7]} 27. c4 {[%clk 0:01:52.9]} 27... Qe5 {[%clk 0:00:55.8]} 28.
Rh8 {[%clk 0:01:26.4]} 28... Qxa1 {[%clk 0:00:41.3]} 29. Qh6+ {[%clk 0:00:55.3]}
29... Kf7 {[%clk 0:00:40.9]} 30. h4 {[%clk 0:00:39]} 30... Qg7 {[%clk
0:00:36.6]} 31. h5 {[%clk 0:00:39.2]} 31... Qxh6 {[%clk 0:00:34.2]} 32. gxh6
{[%clk 0:00:39.4]} 32... gxh5 {[%clk 0:00:27.4]} 33. Kf3 {[%clk 0:00:39.4]}
33... Ng6 {[%clk 0:00:26.3]} 34. Rh7+ {[%clk 0:00:39.5]} 34... Kf6 {[%clk
0:00:23.2]} 35. Rg7 {[%clk 0:00:39.7]} 35... Rg8 {[%clk 0:00:22.3]} 36. Ke4
{[%clk 0:00:37.2]} 36... Rxg7 {[%clk 0:00:21.7]} 37. hxg7 {[%clk 0:00:38.1]}
37... Kxg7 {[%clk 0:00:22.6]} 38. d6 {[%clk 0:00:38.8]} 38... exd6 {[%clk
0:00:22.7]} 39. f4 {[%clk 0:00:39.3]} 39... Rf8 {[%clk 0:00:22.6]} 40. f5 {[%clk
0:00:39.6]} 40... Ne5 {[%clk 0:00:23.3]} 41. Kd5 {[%clk 0:00:40.5]} 41... Rxf5
{[%clk 0:00:23.2]} 42. a4 {[%clk 0:00:40.8]} 42... Nxc4+ {[%clk 0:00:24.1]} 43.
Ke6 {[%clk 0:00:39.2]} 43... Re5+ {[%clk 0:00:23.7]} 44. Kd7 {[%clk 0:00:39.7]}
44... Nd2 {[%clk 0:00:23.4]} 45. b4 {[%clk 0:00:40]} 45... axb4 {[%clk
0:00:23.3]} 46. a5 {[%clk 0:00:40.9]} 46... Nc4 {[%clk 0:00:23.1]} 47. Kc7
{[%clk 0:00:41.4]} 47... Nxa5 {[%clk 0:00:22.8]} 48. Kc8 {[%clk 0:00:41.5]}
48... h4 {[%clk 0:00:23.7]} 49. Kc7 {[%clk 0:00:42.4]} 49... h3 {[%clk
0:00:23.7]} 50. Kc8 {[%clk 0:00:43.3]} 50... h2 {[%clk 0:00:24.6]} 51. Kc7
{[%clk 0:00:44.1]} 51... Re7+ {[%clk 0:00:24.4]} 52. Kc8 {[%clk 0:00:45]} 52...
b5 {[%clk 0:00:20.4]} 53. Kd8 {[%clk 0:00:44.6]} 53... Kf7 {[%clk 0:00:19.5]}
54. Kc8 {[%clk 0:00:44.7]} 54... h1=Q {[%clk 0:00:19.2]} 55. Kd8 {[%clk
0:00:45.6]} 55... Qa8# {[%clk 0:00:18.6]} 0-1

[Event "Late-Titled-Tuesday-Blitz-June-25-2024"]
[Site "Chess.com"]
[Date "2024.06.25"]
[Round "4"]
[White "vova-79"]
[Black "Rsnr"]
[Result "0-1"]
[WhiteElo "2600"]
[BlackElo "2856"]
[TimeControl "180+1"]
[EndTime "14:37:18 PDT"]
[Termination "Rsnr won by resignation"]

1. d4 {[%clk 0:03:00.9]} 1... d5 {[%clk 0:02:58.1]} 2. c4 {[%clk 0:02:53.2]}
2... c6 {[%clk 0:02:58.2]} 3. Nc3 {[%clk 0:02:52.3]} 3... Nf6 {[%clk 0:02:58.3]}
4. e3 {[%clk 0:02:51.9]} 4... g6 {[%clk 0:02:47]} 5. Nf3 {[%clk 0:02:50.5]} 5...
Bg7 {[%clk 0:02:47.4]} 6. Be2 {[%clk 0:02:50]} 6... O-O {[%clk 0:02:47.7]} 7.
O-O {[%clk 0:02:50.5]} 7... Bg4 {[%clk 0:02:42.1]} 8. cxd5 {[%clk 0:02:09.1]}
8... cxd5 {[%clk 0:02:43]} 9. Qb3 {[%clk 0:02:04.5]} 9... b6 {[%clk 0:02:30.3]}
10. h3 {[%clk 0:02:04.6]} 10... Bxf3 {[%clk 0:02:28.9]} 11. Bxf3 {[%clk
0:02:05.5]} 11... e6 {[%clk 0:02:29.8]} 12. Bd2 {[%clk 0:01:59.2]} 12... Nc6
{[%clk 0:02:29.1]} 13. Qa4 {[%clk 0:01:59]} 13... Na5 {[%clk 0:01:54.6]} 14. b3
{[%clk 0:01:57.9]} 14... a6 {[%clk 0:01:46.2]} 15. Rac1 {[%clk 0:01:55.8]} 15...
Re8 {[%clk 0:01:32.9]} 16. Ne2 {[%clk 0:01:27.4]} 16... Nb7 {[%clk 0:01:32.9]}
17. Qc6 {[%clk 0:01:00.3]} 17... Nd6 {[%clk 0:01:32.8]} 18. Bb4 {[%clk
0:00:58.3]} 18... Bf8 {[%clk 0:01:32.8]} 19. Bxd6 {[%clk 0:00:55.9]} 19... Bxd6
{[%clk 0:01:33.7]} 20. g3 {[%clk 0:00:49.5]} 20... Re7 {[%clk 0:01:24.4]} 21.
Qc2 {[%clk 0:00:43.7]} 21... Ba3 {[%clk 0:01:23.5]} 22. Rcd1 {[%clk 0:00:39.4]}
22... Rc7 {[%clk 0:01:23.5]} 23. Qb1 {[%clk 0:00:39.4]} 23... a5 {[%clk
0:01:18.9]} 24. Nf4 {[%clk 0:00:38.9]} 24... Rac8 {[%clk 0:01:10.4]} 25. Nd3
{[%clk 0:00:20.9]} 25... Rc3 {[%clk 0:01:07.2]} 26. Kg2 {[%clk 0:00:20.4]} 26...
Qd6 {[%clk 0:01:01.9]} 27. Rfe1 {[%clk 0:00:20]} 27... Kg7 {[%clk 0:01:01.9]}
28. Re2 {[%clk 0:00:20.2]} 28... h5 {[%clk 0:00:59.8]} 29. Rdd2 {[%clk
0:00:19.2]} 29... Qc7 {[%clk 0:00:55.1]} 30. Rd1 {[%clk 0:00:18.3]} 30... Qc6
{[%clk 0:00:42.7]} 31. Ne5 {[%clk 0:00:17.3]} 31... Qb5 {[%clk 0:00:43.1]} 32.
Nd3 {[%clk 0:00:16.3]} 32... R8c7 {[%clk 0:00:42]} 33. Ne5 {[%clk 0:00:16.1]}
33... Qe8 {[%clk 0:00:30.5]} 34. Nd3 {[%clk 0:00:13.6]} 34... Qc8 {[%clk
0:00:30.5]} 35. Rdd2 {[%clk 0:00:12.5]} 35... Ne8 {[%clk 0:00:23.8]} 36. g4
{[%clk 0:00:11.7]} 36... hxg4 {[%clk 0:00:23.9]} 37. hxg4 {[%clk 0:00:12]} 37...
Nd6 {[%clk 0:00:22.1]} 38. Ne5 {[%clk 0:00:11.2]} 38... Rc1 {[%clk 0:00:17.2]}
39. Qd3 {[%clk 0:00:09.6]} 39... R7c3 {[%clk 0:00:17.3]} 0-1